{"text_format":"1","workbook":"xlsx","n_sheets":3,"sheets":["Tabuľa (dashboard)","Zoznam vybavenia","Údaje kontingenčnej tabuľky"],"not_rendered":{"charts":0,"images":0,"macros":1,"external_links":0,"defined_names":13,"comments":0,"pivot_tables":1},"unopened":[],"bounds":{"document_bytes":16777216,"sheet_cells":100000,"rows_first":2000,"rows_last":500,"rows_between":2000,"halvings":0,"cell_chars":16384,"cell_head_chars":4096},"cells_cut":0,"cells_raw":0,"read":"whole","date_system":"1900"}

{"sheet":"Tabuľa (dashboard)","index":0,"n_rows":20,"n_cols":6,"rows_kept":20,"cut":false,"hidden":false,"merged":[]}
[null,"Tabuľa (dashboard)"]
[]
[]
[null,null,null,null,null,"Celkový súčet"]
[null,null,null,null,null,{"$f":"GETPIVOTDATA(\"Množstvo\",'Údaje kontingenčnej tabuľky'!$B$11)","v":3}]
[]
[null,null,null,null,null,"Celkové mesačné náklady"]
[null,null,null,null,null,{"$f":"GETPIVOTDATA(\"Celkové mesačné náklady\",'Údaje kontingenčnej tabuľky'!$B$11)","v":1765.5943035068672}]
[]
[null,null,null,null,null,"Prevádzkové náklady"]
[null,null,null,null,null,{"$f":"GETPIVOTDATA(\"Prevádzkové náklady\",'Údaje kontingenčnej tabuľky'!$B$11)","v":605}]
[]
[null,null,null,null,null,"Mesačný odpis"]
[null,null,null,null,null,{"$f":"GETPIVOTDATA(\"Mesačný odpis\",'Údaje kontingenčnej tabuľky'!$B$11)","v":659.72222222222217}]
[]
[null,null,null,null,null,"Platobná čiastka"]
[null,null,null,null,null,{"$f":"GETPIVOTDATA(\"Platobná čiastka\",'Údaje kontingenčnej tabuľky'!$B$11)","v":1160.5943035068672}]
[]
[null,null,null,null,null,"Aktuálna hodnota"]
[null,null,null,null,null,{"$f":"GETPIVOTDATA(\"Aktuálna hodnota \",'Údaje kontingenčnej tabuľky'!$B$11)","v":36534.931506849316}]

{"sheet":"Zoznam vybavenia","index":1,"n_rows":9,"n_cols":20,"rows_kept":9,"cut":false,"hidden":false,"merged":[]}
[null,"Zoznam vybavenia"]
[]
[null,null,null,"Zvýrazniť, ak budú zostávajúce mesačné platby nižšie ako: ",20]
[]
[null,"Aktíva alebo\nsériové číslo","Popis položky\n(výrobca a model)","Poloha","Podmienka","Dodávateľ","Zostávajúce\nprevádzkové roky","Počiatočná hodnota","Záloha","Dátum zakúpenia\nalebo prenajatia","Splatnosť pôžičky\n(v rokoch)","Úroková miera pôžičky","Mesačné\nprevádzkové náklady","Predpokladaná hodnota pri ukončení zmluvy","Zostávajúce\nmesačné platby","Mesačná platba","Celkové\nmesačné náklady","Ročné odpisy\n(lineárne)","Mesačné odpisy\n(lineárne)","Aktuálna hodnota"]
[null,123,"Výrobný model 1","Hlavná sekcia","Dobré","Lokálne",5,30000,5000,"2011-01-15",4,0.1,200,20000,{"$f":"IFERROR(SUMPRODUCT(--(DAY(ROW(OFFSET($A$1,,,DATE(YEAR(VYBAVENIE[[#This Row],[Dátum zakúpenia\nalebo prenajatia]])+VYBAVENIE[[#This Row],[Splatnosť pôžičky\n(v rokoch)]],MONTH(VYBAVENIE[[#This Row],[Dátum zakúpenia\nalebo prenajatia]])-1,DAY(VYBAVENIE[[#This Row],[Dátum zakúpenia\nalebo prenajatia]]))-TODAY()))+DATE(YEAR(VYBAVENIE[[#This Row],[Dátum zakúpenia\nalebo prenajatia]])+VYBAVENIE[[#This Row],[Splatnosť pôžičky\n(v rokoch)]],MONTH(VYBAVENIE[[#This Row],[Dátum zakúpenia\nalebo prenajatia]]),DAY(VYBAVENIE[[#This Row],[Dátum zakúpenia\nalebo prenajatia]]))-1)=DAY(VYBAVENIE[[#This Row],[Dátum zakúpenia\nalebo prenajatia]]))),0)","v":24},{"$f":"IFERROR(-(VYBAVENIE[Počiatočná hodnota]>0)*(VYBAVENIE[Počiatočná hodnota]<>VYBAVENIE[Záloha])*PMT(VYBAVENIE[Úroková miera pôžičky]/MesiaceVRoku,VYBAVENIE[Splatnosť pôžičky\n(v rokoch)]*MesiaceVRoku,VYBAVENIE[Počiatočná hodnota]-VYBAVENIE[Záloha]),0)","v":634.06458586867973},{"$f":"VYBAVENIE[[#This Row],[Mesačná platba]]+VYBAVENIE[Mesačné\nprevádzkové náklady]","v":834.06458586867973},{"$f":"IFERROR((VYBAVENIE[Počiatočná hodnota]>0)*SLN(VYBAVENIE[Počiatočná hodnota],VYBAVENIE[Predpokladaná hodnota pri ukončení zmluvy],VYBAVENIE[Splatnosť pôžičky\n(v rokoch)]),0)","v":2500},{"$f":"IFERROR(VYBAVENIE[Ročné odpisy\n(lineárne)]/MesiaceVRoku,0)","v":208.33333333333334},{"$f":"IFERROR(VYBAVENIE[Počiatočná hodnota]-(VYBAVENIE[Ročné odpisy\n(lineárne)]*((TODAY()-VYBAVENIE[Dátum zakúpenia\nalebo prenajatia])/DniVRoku)),0)","v":25027.397260273974}]
[null,234,"Výrobný model 2","Hlavná sekcia","Dobré","Lokálne",4,12500,1500,"2011-03-10",3,7.7499999999999999E-2,120,3000,{"$f":"IFERROR(SUMPRODUCT(--(DAY(ROW(OFFSET($A$1,,,DATE(YEAR(VYBAVENIE[[#This Row],[Dátum zakúpenia\nalebo prenajatia]])+VYBAVENIE[[#This Row],[Splatnosť pôžičky\n(v rokoch)]],MONTH(VYBAVENIE[[#This Row],[Dátum zakúpenia\nalebo prenajatia]])-1,DAY(VYBAVENIE[[#This Row],[Dátum zakúpenia\nalebo prenajatia]]))-TODAY()))+DATE(YEAR(VYBAVENIE[[#This Row],[Dátum zakúpenia\nalebo prenajatia]])+VYBAVENIE[[#This Row],[Splatnosť pôžičky\n(v rokoch)]],MONTH(VYBAVENIE[[#This Row],[Dátum zakúpenia\nalebo prenajatia]]),DAY(VYBAVENIE[[#This Row],[Dátum zakúpenia\nalebo prenajatia]]))-1)=DAY(VYBAVENIE[[#This Row],[Dátum zakúpenia\nalebo prenajatia]]))),0)","v":13},{"$f":"IFERROR(-(VYBAVENIE[Počiatočná hodnota]>0)*(VYBAVENIE[Počiatočná hodnota]<>VYBAVENIE[Záloha])*PMT(VYBAVENIE[Úroková miera pôžičky]/MesiaceVRoku,VYBAVENIE[Splatnosť pôžičky\n(v rokoch)]*MesiaceVRoku,VYBAVENIE[Počiatočná hodnota]-VYBAVENIE[Záloha]),0)","v":343.43280007691891},{"$f":"VYBAVENIE[[#This Row],[Mesačná platba]]+VYBAVENIE[Mesačné\nprevádzkové náklady]","v":463.43280007691891},{"$f":"IFERROR((VYBAVENIE[Počiatočná hodnota]>0)*SLN(VYBAVENIE[Počiatočná hodnota],VYBAVENIE[Predpokladaná hodnota pri ukončení zmluvy],VYBAVENIE[Splatnosť pôžičky\n(v rokoch)]),0)","v":3166.6666666666665},{"$f":"IFERROR(VYBAVENIE[Ročné odpisy\n(lineárne)]/MesiaceVRoku,0)","v":263.88888888888886},{"$f":"IFERROR(VYBAVENIE[Počiatočná hodnota]-(VYBAVENIE[Ročné odpisy\n(lineárne)]*((TODAY()-VYBAVENIE[Dátum zakúpenia\nalebo prenajatia])/DniVRoku)),0)","v":6669.8630136986303}]
[null,345,"Výrobný model 2","Sekcia 1","Uspokojivé","Iné",1,10000,2500,"2010-09-15",4,0.08,285,1000,{"$f":"IFERROR(SUMPRODUCT(--(DAY(ROW(OFFSET($A$1,,,DATE(YEAR(VYBAVENIE[[#This Row],[Dátum zakúpenia\nalebo prenajatia]])+VYBAVENIE[[#This Row],[Splatnosť pôžičky\n(v rokoch)]],MONTH(VYBAVENIE[[#This Row],[Dátum zakúpenia\nalebo prenajatia]])-1,DAY(VYBAVENIE[[#This Row],[Dátum zakúpenia\nalebo prenajatia]]))-TODAY()))+DATE(YEAR(VYBAVENIE[[#This Row],[Dátum zakúpenia\nalebo prenajatia]])+VYBAVENIE[[#This Row],[Splatnosť pôžičky\n(v rokoch)]],MONTH(VYBAVENIE[[#This Row],[Dátum zakúpenia\nalebo prenajatia]]),DAY(VYBAVENIE[[#This Row],[Dátum zakúpenia\nalebo prenajatia]]))-1)=DAY(VYBAVENIE[[#This Row],[Dátum zakúpenia\nalebo prenajatia]]))),0)","v":20},{"$f":"IFERROR(-(VYBAVENIE[Počiatočná hodnota]>0)*(VYBAVENIE[Počiatočná hodnota]<>VYBAVENIE[Záloha])*PMT(VYBAVENIE[Úroková miera pôžičky]/MesiaceVRoku,VYBAVENIE[Splatnosť pôžičky\n(v rokoch)]*MesiaceVRoku,VYBAVENIE[Počiatočná hodnota]-VYBAVENIE[Záloha]),0)","v":183.09691756126861},{"$f":"VYBAVENIE[[#This Row],[Mesačná platba]]+VYBAVENIE[Mesačné\nprevádzkové náklady]","v":468.09691756126858},{"$f":"IFERROR((VYBAVENIE[Počiatočná hodnota]>0)*SLN(VYBAVENIE[Počiatočná hodnota],VYBAVENIE[Predpokladaná hodnota pri ukončení zmluvy],VYBAVENIE[Splatnosť pôžičky\n(v rokoch)]),0)","v":2250},{"$f":"IFERROR(VYBAVENIE[Ročné odpisy\n(lineárne)]/MesiaceVRoku,0)","v":187.5},{"$f":"IFERROR(VYBAVENIE[Počiatočná hodnota]-(VYBAVENIE[Ročné odpisy\n(lineárne)]*((TODAY()-VYBAVENIE[Dátum zakúpenia\nalebo prenajatia])/DniVRoku)),0)","v":4772.6027397260277}]
[null,"Celkom",null,null,null,null,{"$f":"SUBTOTAL(101,VYBAVENIE[Zostávajúce\nprevádzkové roky])","v":3.3333333333333335},{"$f":"SUBTOTAL(109,VYBAVENIE[Počiatočná hodnota])","v":52500},{"$f":"SUBTOTAL(109,VYBAVENIE[Záloha])","v":9000},null,{"$f":"SUBTOTAL(101,VYBAVENIE[Splatnosť pôžičky\n(v rokoch)])","v":3.6666666666666665},{"$f":"SUBTOTAL(101,VYBAVENIE[Úroková miera pôžičky])","v":8.5833333333333331E-2},{"$f":"SUBTOTAL(109,VYBAVENIE[Mesačné\nprevádzkové náklady])","v":605},{"$f":"SUBTOTAL(109,VYBAVENIE[Predpokladaná hodnota pri ukončení zmluvy])","v":24000},{"$f":"SUBTOTAL(101,VYBAVENIE[Zostávajúce\nmesačné platby])","v":19},{"$f":"SUBTOTAL(109,VYBAVENIE[Mesačná platba])","v":1160.5943035068672},{"$f":"SUBTOTAL(109,VYBAVENIE[Celkové\nmesačné náklady])","v":1765.5943035068672},{"$f":"SUBTOTAL(101,VYBAVENIE[Ročné odpisy\n(lineárne)])","v":2638.8888888888887},{"$f":"SUBTOTAL(101,VYBAVENIE[Mesačné odpisy\n(lineárne)])","v":219.90740740740739},{"$f":"SUBTOTAL(109,VYBAVENIE[Aktuálna hodnota])","v":36469.863013698632}]

{"sheet":"Údaje kontingenčnej tabuľky","index":2,"n_rows":15,"n_cols":8,"rows_kept":15,"cut":false,"hidden":true,"merged":[]}
[null,"Údaje kontingenčnej tabuľky"]
[null,"Tento hárok by mal zostať skrytý. Zmena štruktúry kontingenčnej tabuľky v tomto hárku môže viesť k chybám v rýchlych filtroch tabule (dashboard)."]
[]
[null,"Popis položky\n(výrobca a model)","(Všetko)"]
[null,"Poloha","(Všetko)"]
[null,"Podmienka","(Všetko)"]
[null,"Dodávateľ","(Všetko)"]
[null,"Zostávajúce\nprevádzkové roky","(Všetko)"]
[null,"Splatnosť pôžičky\n(v rokoch)","(Všetko)"]
[]
[null,"Menovky riadkov","Množstvo","Prevádzkové náklady","Platobná čiastka","Celkové mesačné náklady","Mesačný odpis","Aktuálna hodnota "]
[null,123,1,200,634.06458586867973,834.06458586867973,208.33333333333334,25047.945205479453]
[null,234,1,120,343.43280007691891,463.43280007691891,263.88888888888886,6695.8904109589048]
[null,345,1,285,183.09691756126861,468.09691756126858,187.5,4791.0958904109593]
[null,"Celkový súčet",3,605,1160.5943035068672,1765.5943035068672,659.72222222222217,36534.931506849316]